bitfinex-derivatives/quotes_BTCF0:USTF0_20250926
["timestamp","ask_amount","ask_price","bid_price","bid_amount"]
[1758857004410,1.76996317,109530.0,109520.0,0.001]
[1758857006204,1.47284602,109530.0,109520.0,0.001]
[1758857006600,1.76996317,109530.0,109520.0,0.001]
[1758857012704,0.0912592,109510.0,109500.0,0.39549]
[1758857012902,1.5252935,109510.0,109500.0,0.39549]
[1758857014110,1.5252935,109510.0,109500.0,0.39649]
[1758857014305,1.5252935,109510.0,109500.0,0.01451]
[1758857014509,1.5252935,109510.0,109500.0,0.01465]
[1758857014908,1.5252935,109510.0,109500.0,0.03683]
[1758857016010,1.5252935,109510.0,109500.0,0.01565]
[1758857016409,1.5272935,109510.0,109500.0,0.03583]
[1758857016999,1.5272935,109510.0,109500.0,0.03483]
[1758857017203,1.5272935,109510.0,109500.0,0.03583]
[1758857017204,1.5402935,109510.0,109500.0,0.03583]
[1758857021808,0.7004935,109510.0,109500.0,0.03583]
[1758857022005,1.5400935,109510.0,109500.0,0.03583]
[1758857022811,0.1062592,109510.0,109500.0,0.03583]
[1758857023012,1.5401735,109510.0,109500.0,0.03583]
[1758857025106,1.5400535,109510.0,109500.0,0.03583]
[1758857025411,0.7004935,109510.0,109500.0,0.03583]
[1758857025816,1.5398135,109510.0,109500.0,0.03583]
[1758857026311,0.7004935,109510.0,109500.0,0.03583]
[1758857026515,1.5397735,109510.0,109500.0,0.03583]
[1758857031118,0.015,109510.0,109500.0,0.82421445]
[1758857031320,1.15103715,109510.0,109500.0,1.18501445]
[1758857031511,1.24229615,109510.0,109500.0,0.8878973]
[1758857031818,1.24229615,109510.0,109500.0,0.79663]
[1758857032219,1.5394133,109510.0,109500.0,0.79663]
[1758857033320,1.5394133,109510.0,109500.0,0.01465]
[1758857033718,1.5394133,109510.0,109500.0,0.001]
[1758857033719,1.9002133,109510.0,109500.0,0.001]
[1758857033917,1.92391216,109510.0,109500.0,0.001]
[1758857034520,2.32391216,109510.0,109500.0,0.001]
[1758857035816,2.32391216,109510.0,109500.0,0.014]
[1758857036619,2.32391216,109510.0,109500.0,0.03689]
[1758857037124,2.3002133,109510.0,109500.0,0.03689]
[1758857037926,2.3013733,109510.0,109500.0,0.03689]
[1758857039227,2.3013733,109510.0,109500.0,0.014]
[1758857040628,2.3013733,109510.0,109500.0,0.03689]
[1758857042938,1.9013733,109510.0,109500.0,0.03689]
[1758857043534,1.5404533,109510.0,109500.0,0.03689]
[1758857044239,1.9012533,109510.0,109500.0,0.03689]
[1758857044941,1.9012533,109510.0,109500.0,0.014]
[1758857045143,1.9012533,109510.0,109500.0,0.001]
[1758857046535,1.90179404,109510.0,109500.0,0.001]
[1758857047541,0.0912675,109500.0,109490.0,0.01200083]
[1758857047844,0.0912675,109500.0,109480.0,0.01326]
[1758857047845,0.0912758,109490.0,109480.0,0.01326]
[1758857048045,1.22906332,109490.0,109480.0,0.01326]
[1758857048543,1.22906332,109490.0,109470.0,0.45584208]
[1758857048544,0.0912841,109480.0,109470.0,0.39597]
[1758857048742,0.38867162,109480.0,109470.0,0.37445]
[1758857049041,0.38867162,109480.0,109470.0,0.39597]
[1758857049740,0.0912841,109480.0,109470.0,0.39597]
[1758857049936,0.39833389,109480.0,109470.0,0.40097]
[1758857050240,0.47130432,109480.0,109470.0,0.40097]
[1758857050449,0.47130432,109480.0,109470.0,0.40397]
[1758857055243,0.47130432,109480.0,109470.0,0.38245]
[1758857055445,1.12949184,109480.0,109470.0,0.008]
[1758857055650,0.83210432,109480.0,109470.0,0.04306]
[1758857056551,1.12949184,109480.0,109470.0,0.04306]
[1758857056750,0.83210432,109480.0,109470.0,0.02154]
[1758857056952,1.12949184,109480.0,109470.0,0.008]
[1758857057151,1.13049184,109480.0,109470.0,0.003]
[1758857057348,0.0902925,109470.0,109460.0,0.39586]
[1758857057549,1.52578754,109470.0,109460.0,0.39586]
[1758857059555,1.52578754,109470.0,109460.0,0.40086]
[1758857059756,1.52578754,109470.0,109460.0,0.04006]
[1758857060059,1.52578754,109470.0,109460.0,0.04306]
[1758857061058,1.52578754,109470.0,109460.0,0.40386]
[1758857064359,0.9310125,109470.0,109460.0,0.40386]
[1758857064551,1.52578754,109470.0,109460.0,0.40386]
[1758857068160,1.52578754,109470.0,109460.0,0.02154]
[1758857071965,1.52578754,109470.0,109460.0,0.04459]
[1758857080576,1.52578754,109470.0,109460.0,0.40539]
[1758857084275,1.52578754,109470.0,109460.0,0.04459]
[1758857084776,1.52578754,109470.0,109460.0,0.40539]
[1758857085178,1.52578754,109470.0,109460.0,0.04459]
[1758857086579,1.52578754,109470.0,109460.0,0.40539]
[1758857086775,1.52578754,109470.0,109460.0,0.04459]
[1758857094184,1.22840002,109470.0,109460.0,0.04459]
[1758857094375,1.52578754,109470.0,109460.0,0.40539]
[1758857095583,1.22672002,109470.0,109460.0,0.40539]
[1758857096486,1.52410754,109470.0,109460.0,0.04459]
[1758857099490,1.52410754,109470.0,109460.0,0.40539]
[1758857099784,1.52410754,109470.0,109460.0,0.04459]
[1758857101589,0.68506754,109470.0,109460.0,0.04459]
[1758857101788,1.52410754,109470.0,109460.0,0.40539]
[1758857102583,1.22672002,109470.0,109460.0,0.40539]
[1758857104799,1.52410754,109470.0,109460.0,0.40539]
[1758857105393,0.68506754,109470.0,109460.0,0.40539]
[1758857105588,1.52410754,109470.0,109460.0,0.40539]
[1758857106595,1.52434126,109470.0,109460.0,0.40539]
[1758857108695,0.68530126,109470.0,109460.0,0.40539]
[1758857108898,1.52434126,109470.0,109460.0,0.40539]
[1758857110093,0.16425783,109480.0,109470.0,0.03588]
[1758857110396,1.59830659,109480.0,109470.0,0.78547678]
[1758857110597,1.59830659,109480.0,109470.0,0.7279724]
[1758857110789,1.59830659,109480.0,109470.0,0.63668]
[1758857111195,1.59830659,109480.0,109470.0,0.39668]
[1758857111797,1.59930659,109480.0,109470.0,0.39668]
[1758857112799,1.59930659,109480.0,109470.0,0.39768]
[1758857113685,0.76026659,109480.0,109470.0,0.4889724]
[1758857113991,1.59926319,109480.0,109470.0,0.4889724]
[1758857114498,1.59926319,109480.0,109470.0,0.78647678]
[1758857114696,1.59926319,109480.0,109470.0,0.4889724]
[1758857114896,1.59926319,109480.0,109470.0,0.78647678]
[1758857115398,1.59926319,109480.0,109470.0,0.4889724]
[1758857116305,0.37147481,109480.0,109470.0,0.78647678]
[1758857116495,1.21047481,109480.0,109470.0,0.78647678]
[1758857117205,1.21047481,109480.0,109470.0,1.02647678]
[1758857117399,1.21047481,109480.0,109470.0,1.03628019]
[1758857117600,1.30175881,109480.0,109470.0,1.03628019]
[1758857117801,1.30175881,109480.0,109470.0,1.02647678]
[1758857118001,1.30175881,109480.0,109470.0,0.7289724]
[1758857118803,1.30175881,109480.0,109470.0,0.73886814]
[1758857119208,1.59926319,109480.0,109470.0,0.73886814]
[1758857119405,1.59926319,109480.0,109470.0,0.64757574]
[1758857119604,1.59926319,109480.0,109470.0,0.40757574]
[1758857119813,1.59922319,109480.0,109470.0,0.39768]
[1758857120105,1.59922319,109480.0,109470.0,0.63768]
[1758857120602,0.37147481,109480.0,109470.0,1.42647678]
[1758857120800,0.001,109480.0,109470.0,1.51782183]
[1758857121003,1.13746438,109480.0,109470.0,1.51782183]
[1758857121200,1.13746438,109480.0,109470.0,1.52752323]
[1758857121404,1.13746438,109480.0,109470.0,1.51782183]
[1758857121708,1.22874838,109480.0,109470.0,1.51782183]
[1758857121909,1.13746438,109480.0,109470.0,1.52744742]
[1758857122502,1.13746438,109480.0,109470.0,1.51782183]
[1758857125317,1.13746438,109480.0,109470.0,1.22031745]
[1758857125500,1.13746438,109480.0,109470.0,1.51782183]
[1758857126207,1.13746438,109480.0,109470.0,1.5271983]
[1758857127206,0.29850438,109480.0,109470.0,1.5271983]
[1758857127402,0.83988,109480.0,109470.0,1.5271983]
[1758857127711,1.13738438,109480.0,109470.0,1.5271983]
[1758857130501,1.13738438,109480.0,109470.0,1.22031745]
[1758857130807,1.13738438,109480.0,109470.0,1.51782183]
[1758857132509,1.13738438,109480.0,109470.0,1.52729175]
[1758857135809,1.13738438,109480.0,109470.0,1.22978737]
[1758857136110,1.13738438,109480.0,109470.0,1.52729175]
[1758857136309,0.29850438,109480.0,109470.0,1.52729175]
[1758857136609,1.13730438,109480.0,109470.0,1.52729175]
[1758857137512,1.06468399,109520.0,109510.0,0.03589]
[1758857137513,0.64955928,109520.0,109510.0,0.03589]
[1758857137808,0.64955928,109520.0,109510.0,0.39669]
[1758857137809,1.52506366,109520.0,109510.0,0.39669]
[1758857138214,1.59908046,109520.0,109510.0,0.39669]
[1758857139006,0.76228046,109520.0,109510.0,0.39669]
[1758857139307,1.61404046,109520.0,109510.0,0.39769]
[1758857141205,1.62361105,109520.0,109510.0,0.39769]
[1758857141710,2.83351543,109520.0,109480.0,0.09483208]
[1758857141912,0.091284,109480.0,109470.0,0.12778423]
[1758857142106,0.091284,109480.0,109460.0,0.01344]
[1758857142107,0.0912924,109470.0,109460.0,0.01344]
[1758857142411,0.0913007,109460.0,109450.0,0.01344]
[1758857142612,2.18333384,109460.0,109450.0,0.01344]
[1758857143003,2.18233384,109460.0,109450.0,0.01344]
[1758857144009,2.25477714,109460.0,109450.0,0.01344]
[1758857144312,2.25477714,109460.0,109440.0,0.02512058]
[1758857144313,0.0913091,109450.0,109440.0,0.02512058]
[1758857144515,1.04411786,109450.0,109440.0,0.02512058]
[1758857144707,1.05374508,109450.0,109440.0,0.02512058]
[1758857144906,1.03674508,109450.0,109440.0,0.02512058]
[1758857145106,1.03674508,109450.0,109440.0,0.04757058]
[1758857145509,1.04074508,109450.0,109440.0,0.07057058]
[1758857152215,1.04074508,109450.0,109440.0,0.04812058]
[1758857160726,1.04074508,109450.0,109440.0,0.06928058]
[1758857161229,1.87970508,109450.0,109440.0,0.06928058]
[1758857161426,1.87970508,109450.0,109440.0,0.04812058]
[1758857162024,1.87970508,109450.0,109440.0,0.06928058]
[1758857166434,0.0753091,109450.0,109440.0,0.43008058]
[1758857166730,1.14051267,109450.0,109440.0,0.92139798]
[1758857167122,0.30155267,109450.0,109440.0,0.92139798]
[1758857167520,0.004,109450.0,109440.0,1.55032074]
[1758857167726,0.84292,109450.0,109440.0,1.55032074]
[1758857169027,0.004,109450.0,109440.0,1.55032074]
[1758857169232,0.84292,109450.0,109440.0,1.55032074]
[1758857170132,0.84292,109450.0,109440.0,1.25276807]
[1758857170334,0.84292,109450.0,109440.0,1.55032074]
[1758857171533,0.004,109450.0,109440.0,1.55032074]
[1758857171937,0.46276,109450.0,109440.0,1.55032074]
[1758857172638,0.004,109450.0,109440.0,1.55032074]
[1758857175730,0.0912877,109480.0,109470.0,0.0912924]
[1758857175934,0.37952726,109490.0,109480.0,0.03693]
[1758857175935,0.3608,109490.0,109480.0,0.03693]
[1758857176237,1.58842837,109490.0,109480.0,0.03693]
[1758857176938,1.59787337,109490.0,109480.0,0.03693]
[1758857178139,1.6902207,109490.0,109480.0,0.04093]
[1758857178327,1.6962207,109490.0,109480.0,0.04093]
[1758857178532,0.8574607,109490.0,109480.0,0.04093]
[1758857178731,1.6962207,109490.0,109480.0,0.04093]
[1758857181055,1.3354207,109490.0,109480.0,0.1322143]
[1758857182860,0.4966607,109490.0,109480.0,0.1322143]
[1758857183058,1.3353407,109490.0,109480.0,0.1322143]
[1758857184048,1.3353407,109490.0,109480.0,0.04093]
[1758857184252,0.4966607,109490.0,109480.0,0.04093]
[1758857184554,1.3353007,109490.0,109480.0,0.04093]
[1758857184755,1.3353007,109490.0,109480.0,0.01776]
[1758857184957,2.0961007,109490.0,109480.0,0.01776]
[1758857188362,2.0961007,109490.0,109480.0,0.04095]
[1758857190664,2.0961007,109490.0,109480.0,0.01776]
[1758857192761,2.0961007,109490.0,109480.0,0.04095]
[1758857192953,2.0961007,109490.0,109480.0,0.01776]
[1758857195259,2.1200541,109490.0,109480.0,0.01776]
[1758857199460,1.7200541,109490.0,109480.0,0.01776]
[1758857201565,2.1200541,109490.0,109480.0,0.01776]
[1758857201758,1.7200541,109490.0,109480.0,0.01776]
[1758857209672,3.5728141,109490.0,109480.0,0.01776]
[1758857217669,0.58386143,109490.0,109480.0,0.01776]
[1758857217874,3.5725341,109490.0,109480.0,0.03989]
[1758857218283,3.5725341,109490.0,109480.0,0.01776]
[1758857220182,3.5725341,109490.0,109480.0,0.03989]
[1758857220481,3.5725341,109490.0,109480.0,0.01776]
[1758857220782,4.27004677,109490.0,109480.0,0.01776]
[1758857220979,4.2700859,109490.0,109480.0,0.01776]
[1758857221179,0.0912843,109480.0,109470.0,0.01376]
[1758857221374,1.0657484,109480.0,109470.0,0.01376]
[1758857222277,0.0912927,109470.0,109460.0,0.01376]
[1758857222473,1.88551804,109470.0,109460.0,0.01376]
[1758857222783,1.88151804,109470.0,109460.0,0.01376]
[1758857223778,1.89751804,109470.0,109460.0,0.01676]
[1758857224379,1.89951804,109470.0,109460.0,0.01676]
[1758857224577,1.06119804,109470.0,109460.0,0.03889]
[1758857224981,1.60192537,109470.0,109460.0,0.03889]
[1758857225176,1.06119804,109470.0,109460.0,0.03889]
[1758857225372,1.53871804,109470.0,109460.0,0.03889]
[1758857225772,1.24116537,109470.0,109460.0,0.03889]
[1758857226478,0.40284537,109470.0,109460.0,0.03889]
[1758857226676,1.24107646,109470.0,109460.0,0.43889]
[1758857227784,0.9436127,109470.0,109460.0,0.43889]
[1758857227982,1.24107646,109470.0,109460.0,0.43889]
[1758857229283,1.53854022,109470.0,109460.0,0.43889]
[1758857234585,0.70022022,109470.0,109460.0,0.43889]
[1758857234790,1.53850022,109470.0,109460.0,0.43889]
[1758857235682,1.53846022,109470.0,109460.0,0.43889]
[1758857235885,1.24099646,109470.0,109460.0,0.43889]
[1758857236085,0.9435327,109470.0,109460.0,0.43889]
[1758857236280,1.60179646,109470.0,109460.0,0.43889]
[1758857236691,1.24099646,109470.0,109460.0,0.43889]
[1758857237093,1.53846022,109470.0,109460.0,0.43889]
[1758857239584,1.24099646,109470.0,109460.0,0.43889]
[1758857240193,1.53846022,109470.0,109460.0,0.43889]
[1758857240997,1.53842022,109470.0,109460.0,0.43889]
[1758857242898,0.40275646,109470.0,109460.0,0.79969]
[1758857243102,1.24091646,109470.0,109460.0,0.79969]
[1758857243397,1.24091646,109470.0,109460.0,0.43889]
[1758857243594,1.53838022,109470.0,109460.0,0.43889]
[1758857244496,1.24091646,109470.0,109460.0,0.43889]
[1758857245601,0.40275646,109470.0,109460.0,0.43889]
[1758857245800,1.24087646,109470.0,109460.0,0.43889]
[1758857246202,1.24087646,109470.0,109460.0,0.79969]
[1758857247705,1.24087646,109470.0,109460.0,0.43889]
[1758857249708,1.53834022,109470.0,109460.0,0.43889]
[1758857250513,1.24087646,109470.0,109460.0,0.43889]
[1758857252505,1.53834022,109470.0,109460.0,0.43889]
[1758857252710,1.89914022,109470.0,109460.0,0.01676]
[1758857253103,1.89914022,109470.0,109460.0,0.03779]
[1758857254209,1.3042127,109470.0,109460.0,0.03779]
[1758857254410,1.89914022,109470.0,109460.0,0.03779]
[1758857255614,1.24075646,109470.0,109460.0,0.03779]
[1758857255807,1.53822022,109470.0,109460.0,0.03779]
[1758857256114,0.70022022,109470.0,109460.0,0.03779]
[1758857256303,1.53822022,109470.0,109460.0,0.03779]
[1758857265128,0.70422052,109470.0,109460.0,0.1290914]
[1758857265427,1.54210052,109470.0,109460.0,0.1290914]
[1758857265918,1.24463676,109470.0,109460.0,0.1290914]
[1758857267226,1.54210052,109470.0,109460.0,0.1290914]
[1758857268728,0.947173,109470.0,109460.0,0.1290914]
[1758857268928,1.54210052,109470.0,109460.0,0.1290914]
[1758857272333,1.54210052,109470.0,109460.0,0.03779]
[1758857272527,1.90290052,109470.0,109460.0,0.03779]
[1758857275431,1.90290052,109470.0,109460.0,0.01676]
[1758857280233,2.30290052,109470.0,109460.0,0.01676]
[1758857285545,2.32655072,109470.0,109460.0,0.01676]
[1758857287846,2.30290052,109470.0,109460.0,0.01676]
[1758857288539,2.30314184,109470.0,109460.0,0.01676]
[1758857289652,4.15614184,109470.0,109460.0,0.01676]
[1758857292043,4.17978998,109470.0,109460.0,0.01676]
[1758857292951,4.15614184,109470.0,109460.0,0.01676]
[1758857294652,4.17978875,109470.0,109460.0,0.01676]
[1758857299156,3.58461991,109470.0,109460.0,0.01676]
[1758857299452,4.15614184,109470.0,109460.0,0.01676]
[1758857301658,4.17978355,109470.0,109460.0,0.01676]
[1758857302544,4.15614184,109470.0,109460.0,0.03915]
[1758857302754,4.15614184,109470.0,109460.0,0.01676]
[1758857305759,4.17977881,109470.0,109460.0,0.01676]
[1758857306258,4.15614184,109470.0,109460.0,0.01676]
[1758857307656,4.17978027,109470.0,109460.0,0.01676]
[1758857307953,4.17978027,109470.0,109440.0,0.01168058]
[1758857307954,0.0913113,109450.0,109440.0,0.01168058]
[1758857308155,0.0913113,109450.0,109430.0,0.01387]
[1758857308156,0.0913197,109440.0,109430.0,0.01387]
[1758857308360,0.74970412,109440.0,109430.0,0.01387]
[1758857308750,0.75921667,109440.0,109430.0,0.01387]
[1758857308951,1.05680109,109440.0,109430.0,0.01387]
[1758857309455,1.06380109,109440.0,109430.0,0.01687]
[1758857311165,1.13646217,109440.0,109430.0,0.01687]
[1758857311464,1.13446217,109440.0,109430.0,0.01687]
[1758857313465,1.13446217,109440.0,109430.0,0.01887]
[1758857316468,1.13446217,109440.0,109430.0,0.04063]
[1758857320468,1.13846217,109440.0,109430.0,0.04263]
[1758857321071,1.13846217,109440.0,109430.0,0.04063]
[1758857321271,1.14146217,109440.0,109430.0,0.01887]
[1758857326890,1.14146217,109440.0,109430.0,0.005]
[1758857327589,1.14146217,109440.0,109430.0,0.01889]
[1758857330903,1.14146217,109440.0,109430.0,0.005]
[1758857331383,1.14146217,109440.0,109430.0,0.01889]
[1758857331589,1.14146217,109440.0,109430.0,0.005]
[1758857331784,0.0913364,109420.0,109410.0,0.03565]
[1758857331985,1.22608082,109420.0,109410.0,0.03565]
[1758857332802,1.58688082,109420.0,109410.0,0.03565]
[1758857333188,1.59188082,109420.0,109410.0,0.04665]
[1758857335198,1.90792088,109420.0,109410.0,0.02489]
[1758857335990,1.88946524,109420.0,109410.0,0.02489]
[1758857336697,1.88946524,109420.0,109410.0,0.04751]
[1758857337198,1.88946524,109420.0,109410.0,0.02489]
[1758857337390,0.0913531,109400.0,109390.0,0.39731]
[1758857337590,1.22605752,109400.0,109390.0,0.03651]
[1758857338501,0.46027328,109400.0,109390.0,0.03651]
[1758857338693,1.29739328,109400.0,109390.0,0.03651]
[1758857339294,1.30339328,109400.0,109390.0,0.05551]
[1758857339492,1.30339328,109400.0,109390.0,0.05951]
[1758857340196,0.46627328,109400.0,109390.0,0.05951]
[1758857340395,1.30343328,109400.0,109390.0,0.05951]
[1758857340891,1.30343328,109400.0,109390.0,0.05851]
[1758857342494,1.00584886,109400.0,109390.0,0.05851]
[1758857342694,1.00584886,109400.0,109390.0,0.05651]
[1758857342899,1.30343328,109400.0,109390.0,0.05651]
[1758857343495,1.00584886,109400.0,109390.0,0.05651]
[1758857343697,1.30343328,109400.0,109390.0,0.05651]
[1758857350610,1.60164352,109400.0,109390.0,0.05651]
[1758857355514,1.61120873,109400.0,109390.0,0.05651]
[1758857357411,0.77404873,109400.0,109390.0,0.05651]
[1758857357610,1.60352352,109400.0,109390.0,0.05651]
[1758857359616,1.61290864,109400.0,109390.0,0.05651]
[1758857365223,1.61290864,109400.0,109390.0,0.12227932]
[1758857366622,1.61290864,109400.0,109390.0,0.05651]
[1758857373628,1.60352352,109400.0,109390.0,0.05651]
[1758857374031,0.16868886,109400.0,109390.0,0.5086714]
[1758857374232,1.60192352,109400.0,109390.0,0.80656873]
[1758857374636,1.60224352,109400.0,109390.0,0.5086714]
[1758857374827,1.60224352,109400.0,109390.0,0.41731]
[1758857375531,1.60224352,109400.0,109390.0,0.4990113]
[1758857375826,1.00644886,109400.0,109390.0,0.4990113]
[1758857376025,1.60204352,109400.0,109390.0,0.4990113]
[1758857376220,1.60204352,109400.0,109390.0,0.41731]
[1758857377336,0.76448352,109400.0,109390.0,0.05651]
[1758857377533,1.60192352,109400.0,109390.0,0.05651]
[1758857379627,1.60192352,109400.0,109390.0,0.1478714]
[1758857380226,1.60192352,109400.0,109390.0,0.5086714]
[1758857380832,1.60192352,109400.0,109390.0,0.1478714]
[1758857382337,0.76448352,109400.0,109390.0,0.1478714]
[1758857382544,1.60192352,109400.0,109390.0,0.1478714]
[1758857383439,1.60192352,109400.0,109390.0,0.5086714]
[1758857386142,0.76448352,109400.0,109390.0,0.5086714]
[1758857386342,1.60192352,109400.0,109390.0,0.5086714]
[1758857387739,1.60192352,109400.0,109390.0,0.80656873]
[1758857387740,0.76448352,109400.0,109390.0,0.80656873]
[1758857387940,1.60192352,109400.0,109390.0,0.80656873]
[1758857388441,1.60192352,109400.0,109390.0,0.88827003]
[1758857388634,0.76448352,109400.0,109390.0,0.5903727]
[1758857388837,1.60192352,109400.0,109390.0,0.5903727]
[1758857390137,1.60192352,109400.0,109390.0,0.5086714]
[1758857391744,1.00612886,109400.0,109390.0,0.5086714]
[1758857391936,1.60192352,109400.0,109390.0,0.5086714]
[1758857392641,0.07733576,109400.0,109390.0,0.80656873]
[1758857392836,0.91473576,109400.0,109390.0,1.29798058]
[1758857393036,1.21263309,109400.0,109390.0,1.29798058]
[1758857393444,1.30398619,109400.0,109390.0,1.00008325]
[1758857393642,1.30398619,109400.0,109390.0,1.29798058]
[1758857394043,0.46658619,109400.0,109390.0,1.29798058]
[1758857394342,1.30398619,109400.0,109390.0,1.29798058]
[1758857395052,1.30398619,109400.0,109390.0,1.00008325]
[1758857395346,1.30398619,109400.0,109390.0,1.29798058]
[1758857396148,1.60188352,109400.0,109390.0,1.29798058]
[1758857398238,1.30398619,109400.0,109390.0,1.29798058]
[1758857398848,1.00608886,109400.0,109390.0,1.29798058]
[1758857399143,1.30398619,109400.0,109390.0,1.29798058]
[1758857399549,1.21263309,109400.0,109390.0,1.29798058]
[1758857401847,1.21263309,109400.0,109390.0,1.00008325]
[1758857402055,1.51049042,109400.0,109390.0,1.00008325]
[1758857402846,1.60184352,109400.0,109390.0,1.00008325]
[1758857403151,1.00604886,109400.0,109390.0,1.00008325]
[1758857403539,1.60184352,109400.0,109390.0,1.00008325]
[1758857404150,1.00604886,109400.0,109390.0,1.00008325]
[1758857404446,1.60184352,109400.0,109390.0,1.00008325]
[1758857408551,1.60184352,109400.0,109390.0,1.29798058]
[1758857409544,0.91469576,109400.0,109390.0,1.29798058]
[1758857409746,1.51049042,109400.0,109390.0,1.29798058]
[1758857410648,1.21253386,109400.0,109390.0,1.00008325]
[1758857411959,0.07733576,109400.0,109390.0,1.00008325]
[1758857412156,1.21245386,109400.0,109390.0,1.00008325]
[1758857412354,0.07733576,109400.0,109390.0,1.29792135]
[1758857412554,0.84328,109400.0,109390.0,1.29792135]
[1758857412857,0.84328,109400.0,109390.0,1.37962265]
[1758857414158,0.006,109400.0,109390.0,1.37962265]
[1758857414459,0.84328,109400.0,109390.0,1.37962265]
[1758857414655,0.006,109400.0,109390.0,1.37962265]
[1758857414958,0.84328,109400.0,109390.0,1.37962265]
[1758857415258,0.84324,109400.0,109390.0,0.97962265]
[1758857415658,0.006,109400.0,109390.0,0.97962265]
[1758857416053,0.76928,109400.0,109390.0,0.97962265]
[1758857416255,0.84324,109400.0,109390.0,0.97962265]
[1758857416960,0.006,109400.0,109390.0,0.97962265]
[1758857417153,0.257,109400.0,109390.0,1.37962265]
[1758857417655,0.2978381,109420.0,109410.0,0.1279147]
[1758857417856,1.1350781,109420.0,109410.0,0.4887147]
[1758857418161,0.7499702,109430.0,109420.0,0.03657]
[1758857418363,1.5872102,109430.0,109420.0,0.03657]
[1758857418562,1.5865102,109430.0,109420.0,0.03657]
[1758857418963,0.7450602,109430.0,109420.0,0.03657]
[1758857419263,1.59143292,109430.0,109420.0,0.03657]
[1758857420860,1.62143292,109430.0,109420.0,0.04257]
[1758857421562,1.62443292,109430.0,109420.0,0.04257]
[1758857425273,1.62435292,109430.0,109420.0,0.04257]
[1758857428075,1.62249754,109430.0,109420.0,0.04257]
[1758857439582,2.02249754,109430.0,109420.0,0.01925]
[1758857440490,1.62249754,109430.0,109420.0,0.01925]
[1758857440691,1.62249754,109430.0,109420.0,0.006]
[1758857445093,2.34387271,109430.0,109420.0,0.006]
[1758857448696,2.34386413,109430.0,109420.0,0.006]
[1758857448893,0.0913364,109420.0,109410.0,0.01325]
[1758857449100,1.0478126,109420.0,109410.0,0.01325]
[1758857450098,1.0478126,109420.0,109410.0,0.01925]
[1758857450297,1.0738126,109420.0,109410.0,0.01925]
[1758857454299,0.7759745,109420.0,109410.0,0.04171]
[1758857457298,0.7759745,109420.0,109410.0,0.01925]
[1758857457999,1.6129745,109420.0,109410.0,0.01925]
[1758857458904,0.7759745,109420.0,109410.0,0.01925]
[1758857459203,1.6129745,109420.0,109410.0,0.01925]
[1758857460102,1.6129745,109420.0,109410.0,0.0422]
[1758857467508,0.7759745,109420.0,109410.0,0.0422]
[1758857468007,1.6128945,109420.0,109410.0,0.0422]
[1758857468706,1.6128945,109420.0,109410.0,0.01925]
[1758857470509,1.6128945,109420.0,109410.0,0.04142]
[1758857470709,2.2085815,109420.0,109410.0,0.04142]
[1758857472209,2.2085815,109420.0,109410.0,0.01925]
[1758857472812,2.2085815,109420.0,109410.0,0.04142]
[1758857473110,1.9107398,109420.0,109410.0,0.04142]
[1758857473612,1.9107398,109420.0,109410.0,0.1327647]
[1758857473613,1.5499398,109420.0,109410.0,0.1327647]
[1758857473809,0.1173364,109420.0,109410.0,0.5327647]
[1758857474113,1.5498998,109420.0,109410.0,0.44142]
[1758857474608,1.9106998,109420.0,109410.0,0.44142]
[1758857476305,1.5498998,109420.0,109410.0,0.44142]
[1758857476508,1.9106998,109420.0,109410.0,0.44142]
[1758857477313,1.5498998,109420.0,109410.0,0.44142]
[1758857477815,1.9106998,109420.0,109410.0,0.44142]
[1758857478718,1.0738198,109420.0,109410.0,0.44142]
[1758857478923,1.9106598,109420.0,109410.0,0.44142]
[1758857479713,1.5498598,109420.0,109410.0,0.44142]
[1758857480117,1.9106598,109420.0,109410.0,0.44142]
[1758857480317,1.5498598,109420.0,109410.0,0.44142]
[1758857480517,1.9106598,109420.0,109410.0,0.44142]
[1758857481516,0.4781364,109420.0,109410.0,0.44142]
[1758857481718,1.5498598,109420.0,109410.0,0.44142]
[1758857483018,1.9106598,109420.0,109410.0,0.44142]
[1758857486321,1.5498598,109420.0,109410.0,0.44142]
[1758857486622,1.9106598,109420.0,109410.0,0.44142]
[1758857487322,1.5498598,109420.0,109410.0,0.44142]
[1758857487530,1.9106598,109420.0,109410.0,0.44142]
[1758857488328,1.5498598,109420.0,109410.0,0.44142]
[1758857489331,1.5497398,109420.0,109410.0,0.8306064]
[1758857489528,0.9540564,109420.0,109410.0,0.44142]
[1758857489729,1.5497398,109420.0,109410.0,0.44142]
[1758857494838,0.9540564,109420.0,109410.0,0.44142]
[1758857495038,1.5497398,109420.0,109410.0,0.44142]
[1758857499545,1.5497398,109420.0,109410.0,0.04142]
[1758857514552,1.9105398,109420.0,109410.0,0.04142]
[1758857517259,1.0738198,109420.0,109410.0,0.04142]
[1758857517560,1.9101798,109420.0,109410.0,0.04142]
[1758857520861,1.5493798,109420.0,109410.0,0.04142]
[1758857521463,1.9101798,109420.0,109410.0,0.04142]
[1758857521763,1.5493798,109420.0,109410.0,0.04142]
[1758857522157,1.9101798,109420.0,109410.0,0.04142]
[1758857526868,2.2080215,109420.0,109410.0,0.01925]
[1758857527064,2.6080215,109420.0,109410.0,0.01925]
[1758857529369,2.6080215,109420.0,109410.0,0.006]
[1758857529568,2.63155991,109420.0,109410.0,0.006]
[1758857529769,2.6080215,109420.0,109410.0,0.006]
[1758857529968,2.63156024,109420.0,109410.0,0.006]
[1758857530162,2.63156024,109420.0,109390.0,0.01389]
[1758857530163,0.0913531,109400.0,109390.0,0.01389]
[1758857530369,1.8839965,109400.0,109390.0,0.03536]
[1758857531063,1.5231965,109400.0,109390.0,0.03536]
[1758857531969,1.5231965,109400.0,109390.0,0.03736]
[1758857532566,1.22538649,109400.0,109390.0,0.03736]
[1758857533370,1.29843221,109400.0,109390.0,0.03736]
[1758857534176,1.33143221,109400.0,109390.0,0.04436]
[1758857536178,1.33143221,109400.0,109390.0,0.28436]
[1758857542285,1.69223221,109400.0,109390.0,0.28436]
[1758857543989,1.69223221,109400.0,109390.0,0.04436]
[1758857544580,1.33143221,109400.0,109390.0,0.28436]
[1758857547592,1.33143221,109400.0,109390.0,0.28491]
[1758857551297,2.11051054,109400.0,109390.0,0.02289]
[1758857553794,3.96455054,109400.0,109390.0,0.02289]
[1758857554589,3.94627221,109400.0,109390.0,0.02289]
[1758857557103,1.25607221,109400.0,109390.0,0.02289]
[1758857557299,3.94939221,109400.0,109390.0,0.02289]
[1758857557801,1.25607221,109400.0,109390.0,0.02289]